[Event "Titled Tuesday Blitz December 27 Late 2022"]
[White "Sukandar, Irine Kharisma"]
[Black "Jenkins, Drake"]
[WhiteFideId "7101937"]
[BlackFideId "2022397"]
[WhiteElo "2390"]
[BlackElo "2130"]
[Result "0-1"]
[Round "03"]
[TimeControl "180+2"]
[Date "2022.12.27"]
[WhiteClock "0:00:09"]
[BlackClock "0:00:02"]

1. e4 {[%clk 0:03:00]}  c5 {[%clk 0:02:56]} 2. Nc3 {[%clk 0:02:59]}  g6 {[%clk 0:02:56]} 3. d4 {[%clk 0:02:58]}  cxd4 {[%clk 0:02:54]} 4. Qxd4 {[%clk 0:02:58]}  Nf6 {[%clk 0:02:54]} 5. Nf3 {[%clk 0:02:57]}  Nc6 {[%clk 0:02:55]} 6. Qa4 {[%clk 0:02:57]}  d6 {[%clk 0:02:49]} 7. e5 {[%clk 0:02:57]}  dxe5 {[%clk 0:02:47]} 8. Nxe5 {[%clk 0:02:54]}  Bd7 {[%clk 0:02:46]} 9. Nxd7 {[%clk 0:02:52]}  Qxd7 {[%clk 0:02:32]} 10. Bf4 {[%clk 0:02:50]}  Bg7 {[%clk 0:02:23]} 11. Be2 {[%clk 0:02:33]}  O-O {[%clk 0:02:18]} 12. O-O {[%clk 0:02:32]}  Rad8 {[%clk 0:02:07]} 13. Bd3 {[%clk 0:02:03]}  Nd5 {[%clk 0:01:48]} 14. Nxd5 {[%clk 0:02:02]}  Qxd5 {[%clk 0:01:49]} 15. Rab1 {[%clk 0:01:49]}  Qh5 {[%clk 0:01:28]} 16. Be3 {[%clk 0:01:37]}  Bd4 {[%clk 0:01:15]} 17. Rfe1 {[%clk 0:01:32]}  Rd6 {[%clk 0:00:31]} 18. Bxd4 {[%clk 0:01:24]}  Rxd4 {[%clk 0:00:27]} 19. Qb3 {[%clk 0:01:24]}  Rd7 {[%clk 0:00:16]} 20. h3 {[%clk 0:01:04]}  Rfd8 {[%clk 0:00:16]} 21. a3 {[%clk 0:00:51]}  Qg5 {[%clk 0:00:16]} 22. Re3 {[%clk 0:00:47]}  Nd4 {[%clk 0:00:11]} 23. Qa4 {[%clk 0:00:32]}  a6 {[%clk 0:00:11]} 24. Rbe1 {[%clk 0:00:26]}  e6 {[%clk 0:00:07]} 25. Qb4 {[%clk 0:00:19]}  Nc6 {[%clk 0:00:06]} 26. Qe4 {[%clk 0:00:18]}  Rd4 {[%clk 0:00:04]} 27. Qf3 {[%clk 0:00:17]}  Rf4 {[%clk 0:00:04]} 28. Qe2 {[%clk 0:00:16]}  Nd4 {[%clk 0:00:04]} 29. Qd1 {[%clk 0:00:15]}  Nc6 {[%clk 0:00:03]} 30. Kh1 {[%clk 0:00:13]}  Rxf2 {[%clk 0:00:03]} 31. Rg1 {[%clk 0:00:09]}  Qxe3 {[%clk 0:00:02]} 0-1


[Site "https://www.chess.com"]

[Event "Titled Tuesday Blitz December 27 Late 2022"]
[White "Taboas Rodriguez, Daniel"]
[Black "Stanojevic, Ilija"]
[WhiteFideId "2208466"]
[BlackFideId "959995"]
[WhiteElo "2371"]
[BlackElo "2142"]
[Result "1-0"]
[Round "03"]
[TimeControl "180+2"]
[Date "2022.12.27"]
[WhiteClock "0:01:34"]
[BlackClock "0:00:07"]

1. d4 {[%clk 0:02:44]}  d5 {[%clk 0:02:57]} 2. Nf3 {[%clk 0:02:45]}  Nf6 {[%clk 0:02:57]} 3. c4 {[%clk 0:02:46]}  dxc4 {[%clk 0:02:57]} 4. e3 {[%clk 0:02:46]}  Bg4 {[%clk 0:02:57]} 5. Bxc4 {[%clk 0:02:46]}  e6 {[%clk 0:02:57]} 6. Nc3 {[%clk 0:02:45]}  Bd6 {[%clk 0:02:56]} 7. h3 {[%clk 0:02:37]}  Bh5 {[%clk 0:02:56]} 8. g4 {[%clk 0:02:37]}  Bg6 {[%clk 0:02:56]} 9. Nh4 {[%clk 0:02:34]}  Nc6 {[%clk 0:02:34]} 10. Nxg6 {[%clk 0:02:33]}  hxg6 {[%clk 0:02:35]} 11. Bb5 {[%clk 0:02:28]}  a6 {[%clk 0:02:27]} 12. Bxc6+ {[%clk 0:02:27]}  bxc6 {[%clk 0:02:28]} 13. Qf3 {[%clk 0:02:25]}  c5 {[%clk 0:02:20]} 14. dxc5 {[%clk 0:02:23]}  Bxc5 {[%clk 0:02:21]} 15. Qc6+ {[%clk 0:02:23]}  Nd7 {[%clk 0:02:19]} 16. Ke2 {[%clk 0:02:22]}  Bd6 {[%clk 0:02:07]} 17. Ne4 {[%clk 0:02:20]}  O-O {[%clk 0:01:36]} 18. Nxd6 {[%clk 0:02:19]}  cxd6 {[%clk 0:01:37]} 19. Qxd6 {[%clk 0:02:20]}  Qc8 {[%clk 0:01:33]} 20. Bd2 {[%clk 0:02:19]}  Qc4+ {[%clk 0:01:31]} 21. Qd3 {[%clk 0:02:19]}  Qxd3+ {[%clk 0:01:14]} 22. Kxd3 {[%clk 0:02:19]}  Rfd8 {[%clk 0:01:13]} 23. Ke2 {[%clk 0:02:19]}  Rab8 {[%clk 0:01:06]} 24. b3 {[%clk 0:02:18]}  Nc5 {[%clk 0:01:02]} 25. Rhd1 {[%clk 0:02:16]}  Ne4 {[%clk 0:01:02]} 26. Be1 {[%clk 0:02:16]}  Rdc8 {[%clk 0:00:57]} 27. Rac1 {[%clk 0:02:15]}  Kf8 {[%clk 0:00:54]} 28. f3 {[%clk 0:02:15]}  Nf6 {[%clk 0:00:52]} 29. e4 {[%clk 0:02:14]}  Ke8 {[%clk 0:00:52]} 30. Bg3 {[%clk 0:02:13]}  Ra8 {[%clk 0:00:48]} 31. Be5 {[%clk 0:02:10]}  a5 {[%clk 0:00:41]} 32. h4 {[%clk 0:02:01]}  a4 {[%clk 0:00:41]} 33. b4 {[%clk 0:01:56]}  a3 {[%clk 0:00:39]} 34. Bxf6 {[%clk 0:01:51]}  gxf6 {[%clk 0:00:39]} 35. h5 {[%clk 0:01:51]}  gxh5 {[%clk 0:00:36]} 36. gxh5 {[%clk 0:01:52]}  Ke7 {[%clk 0:00:35]} 37. b5 {[%clk 0:01:49]}  Rxc1 {[%clk 0:00:22]} 38. Rxc1 {[%clk 0:01:50]}  Rb8 {[%clk 0:00:21]} 39. Rb1 {[%clk 0:01:47]}  Kd6 {[%clk 0:00:19]} 40. Rb3 {[%clk 0:01:45]}  Kc5 {[%clk 0:00:17]} 41. b6 {[%clk 0:01:43]}  Kc6 {[%clk 0:00:16]} 42. b7 {[%clk 0:01:43]}  Kc7 {[%clk 0:00:16]} 43. Ke3 {[%clk 0:01:43]}  e5 {[%clk 0:00:16]} 44. h6 {[%clk 0:01:43]}  Kd7 {[%clk 0:00:13]} 45. Kd3 {[%clk 0:01:39]}  Kc7 {[%clk 0:00:13]} 46. Kc4 {[%clk 0:01:39]}  Kc6 {[%clk 0:00:13]} 47. h7 {[%clk 0:01:36]}  Kc7 {[%clk 0:00:12]} 48. Kc5 {[%clk 0:01:36]}  f5 {[%clk 0:00:08]} 49. exf5 {[%clk 0:01:36]}  f6 {[%clk 0:00:08]} 50. Rb4 {[%clk 0:01:34]}  Kd7 {[%clk 0:00:07]} 51. Kb6 {[%clk 0:01:34]} 1-0


[Site "https://www.chess.com"]

[Event "Titled Tuesday Blitz December 27 Late 2022"]
[White "Talibov, Shiroghlan"]
[Black "Rasulov, Vugar"]
[WhiteFideId "13429078"]
[BlackFideId "13402390"]
[WhiteElo "2359"]
[BlackElo "2523"]
[Result "1-0"]
[Round "03"]
[TimeControl "180+2"]
[Date "2022.12.27"]
[WhiteClock "0:00:06"]
[BlackClock "0:00:13"]

1. c4 {[%clk 0:03:00]}  Nf6 {[%clk 0:02:59]} 2. Nc3 {[%clk 0:03:00]}  e6 {[%clk 0:03:00]} 3. e4 {[%clk 0:03:00]}  d5 {[%clk 0:03:00]} 4. cxd5 {[%clk 0:03:00]}  exd5 {[%clk 0:03:01]} 5. e5 {[%clk 0:03:01]}  Ne4 {[%clk 0:02:58]} 6. Nf3 {[%clk 0:03:00]}  Nxc3 {[%clk 0:02:55]} 7. dxc3 {[%clk 0:02:59]}  Be7 {[%clk 0:02:54]} 8. Bd3 {[%clk 0:02:58]}  Nc6 {[%clk 0:02:52]} 9. h3 {[%clk 0:02:59]}  Be6 {[%clk 0:02:49]} 10. Bf4 {[%clk 0:02:53]}  h6 {[%clk 0:02:49]} 11. Qd2 {[%clk 0:02:54]}  Qd7 {[%clk 0:02:47]} 12. Nd4 {[%clk 0:02:53]}  Nxd4 {[%clk 0:02:42]} 13. cxd4 {[%clk 0:02:54]}  O-O-O {[%clk 0:02:42]} 14. O-O-O {[%clk 0:02:52]}  Qa4 {[%clk 0:02:38]} 15. Bb1 {[%clk 0:02:43]}  c5 {[%clk 0:02:29]} 16. Be3 {[%clk 0:02:30]}  Kb8 {[%clk 0:02:24]} 17. Qc2 {[%clk 0:02:27]}  Qa5 {[%clk 0:01:57]} 18. Qc3 {[%clk 0:02:24]}  Qxc3+ {[%clk 0:01:54]} 19. bxc3 {[%clk 0:02:25]}  Rc8 {[%clk 0:01:49]} 20. Kb2 {[%clk 0:02:24]}  Rc6 {[%clk 0:01:48]} 21. f4 {[%clk 0:02:11]}  Rhc8 {[%clk 0:01:43]} 22. f5 {[%clk 0:01:36]}  Bd7 {[%clk 0:01:43]} 23. dxc5 {[%clk 0:01:34]}  Bxc5 {[%clk 0:01:44]} 24. Bf4 {[%clk 0:01:25]}  Rb6+ {[%clk 0:01:36]} 25. Ka1 {[%clk 0:01:24]}  Ba3 {[%clk 0:01:31]} 26. Rd2 {[%clk 0:01:24]}  Ka8 {[%clk 0:01:27]} 27. Be3 {[%clk 0:01:25]}  Bc5 {[%clk 0:01:10]} 28. Bd4 {[%clk 0:01:17]}  Bxd4 {[%clk 0:01:05]} 29. cxd4 {[%clk 0:01:18]}  a5 {[%clk 0:01:03]} 30. g4 {[%clk 0:01:15]}  a4 {[%clk 0:01:02]} 31. Rc2 {[%clk 0:01:14]}  Rxc2 {[%clk 0:00:55]} 32. Bxc2 {[%clk 0:01:15]}  Rb4 {[%clk 0:00:56]} 33. Rd1 {[%clk 0:01:14]}  a3 {[%clk 0:00:56]} 34. Bb3 {[%clk 0:01:13]}  Bc6 {[%clk 0:00:42]} 35. Kb1 {[%clk 0:01:09]}  Ba4 {[%clk 0:00:30]} 36. Kc2 {[%clk 0:01:09]}  Bxb3+ {[%clk 0:00:31]} 37. axb3 {[%clk 0:01:10]}  Kb8 {[%clk 0:00:31]} 38. Kc3 {[%clk 0:01:09]}  Rb6 {[%clk 0:00:31]} 39. Ra1 {[%clk 0:01:06]}  Rc6+ {[%clk 0:00:32]} 40. Kd2 {[%clk 0:00:59]}  Ra6 {[%clk 0:00:32]} 41. b4 {[%clk 0:00:45]}  Kc7 {[%clk 0:00:31]} 42. Kc3 {[%clk 0:00:45]}  Rc6+ {[%clk 0:00:31]} 43. Kb3 {[%clk 0:00:43]}  Rc4 {[%clk 0:00:32]} 44. Rd1 {[%clk 0:00:43]}  a2 {[%clk 0:00:27]} 45. Kxa2 {[%clk 0:00:42]}  Rxb4 {[%clk 0:00:28]} 46. Ka3 {[%clk 0:00:42]}  Rc4 {[%clk 0:00:28]} 47. Kb3 {[%clk 0:00:41]}  Kc6 {[%clk 0:00:27]} 48. Rd3 {[%clk 0:00:40]}  b5 {[%clk 0:00:27]} 49. Rc3 {[%clk 0:00:38]}  Kb6 {[%clk 0:00:26]} 50. Re3 {[%clk 0:00:32]}  Kc7 {[%clk 0:00:22]} 51. e6 {[%clk 0:00:31]}  fxe6 {[%clk 0:00:22]} 52. Rxe6 {[%clk 0:00:32]}  Rxd4 {[%clk 0:00:22]} 53. Rg6 {[%clk 0:00:28]}  Rf4 {[%clk 0:00:19]} 54. Rxg7+ {[%clk 0:00:27]}  Kd6 {[%clk 0:00:19]} 55. Rg6+ {[%clk 0:00:25]}  Kc5 {[%clk 0:00:20]} 56. Rxh6 {[%clk 0:00:25]}  Rf3+ {[%clk 0:00:21]} 57. Kc2 {[%clk 0:00:23]}  b4 {[%clk 0:00:21]} 58. Rh8 {[%clk 0:00:16]}  b3+ {[%clk 0:00:21]} 59. Kb2 {[%clk 0:00:16]}  d4 {[%clk 0:00:22]} 60. Rc8+ {[%clk 0:00:15]}  Kb4 {[%clk 0:00:23]} 61. Rb8+ {[%clk 0:00:14]}  Kc4 {[%clk 0:00:23]} 62. h4 {[%clk 0:00:10]}  Rf2+ {[%clk 0:00:23]} 63. Kb1 {[%clk 0:00:11]}  d3 {[%clk 0:00:23]} 64. Rc8+ {[%clk 0:00:09]}  Kd4 {[%clk 0:00:23]} 65. Rd8+ {[%clk 0:00:09]}  Ke4 {[%clk 0:00:22]} 66. g5 {[%clk 0:00:07]}  d2 {[%clk 0:00:16]} 67. f6 {[%clk 0:00:08]}  Ke3 {[%clk 0:00:17]} 68. h5 {[%clk 0:00:06]}  Rf5 {[%clk 0:00:15]} 69. g6 {[%clk 0:00:05]}  Rxf6 {[%clk 0:00:15]} 70. g7 {[%clk 0:00:05]}  Rf1+ {[%clk 0:00:08]} 71. Kb2 {[%clk 0:00:05]}  Rg1 {[%clk 0:00:09]} 72. h6 {[%clk 0:00:05]}  Rg2 {[%clk 0:00:09]} 73. Kxb3 {[%clk 0:00:04]}  Rg6 {[%clk 0:00:10]} 74. h7 {[%clk 0:00:03]}  Rxg7 {[%clk 0:00:09]} 75. h8=Q {[%clk 0:00:03]}  Rb7+ {[%clk 0:00:10]} 76. Ka4 {[%clk 0:00:04]}  Ra7+ {[%clk 0:00:10]} 77. Kb5 {[%clk 0:00:04]}  Rb7+ {[%clk 0:00:11]} 78. Ka6 {[%clk 0:00:04]}  Rb1 {[%clk 0:00:09]} 79. Qc3+ {[%clk 0:00:04]}  Ke4 {[%clk 0:00:09]} 80. Qd3+ {[%clk 0:00:04]}  Ke5 {[%clk 0:00:09]} 81. Qxb1 {[%clk 0:00:05]}  d1=Q {[%clk 0:00:10]} 82. Qxd1 {[%clk 0:00:05]}  Ke6 {[%clk 0:00:11]} 83. Qd7+ {[%clk 0:00:05]}  Kf6 {[%clk 0:00:11]} 84. Rf8+ {[%clk 0:00:05]}  Kg6 {[%clk 0:00:12]} 85. Qf7+ {[%clk 0:00:05]}  Kg5 {[%clk 0:00:12]} 86. Rg8+ {[%clk 0:00:05]}  Kh6 {[%clk 0:00:13]} 87. Qg6# {[%clk 0:00:06]} 1-0


[Site "https://www.chess.com"]

[Event "Titled Tuesday Blitz December 27 Late 2022"]
[White "Tanenbaum, Zachary"]
[Black "Estrada Nieto, Julian"]
[WhiteFideId "2060850"]
[BlackFideId "5101018"]
[WhiteElo "2261"]
[BlackElo "2215"]
[Result "1-0"]
[Round "03"]
[TimeControl "180+2"]
[Date "2022.12.27"]
[WhiteClock "0:00:36"]
[BlackClock "0:00:52"]

1. e4 {[%clk 0:03:00]}  e5 {[%clk 0:02:59]} 2. Nf3 {[%clk 0:03:01]}  Nc6 {[%clk 0:02:59]} 3. Bc4 {[%clk 0:03:01]}  Bc5 {[%clk 0:02:59]} 4. c3 {[%clk 0:03:01]}  Nf6 {[%clk 0:02:59]} 5. d4 {[%clk 0:03:02]}  exd4 {[%clk 0:02:59]} 6. b4 {[%clk 0:03:02]}  Bb6 {[%clk 0:02:58]} 7. e5 {[%clk 0:03:02]}  d5 {[%clk 0:02:58]} 8. exf6 {[%clk 0:03:02]}  dxc4 {[%clk 0:02:58]} 9. Qe2+ {[%clk 0:03:03]}  Be6 {[%clk 0:02:57]} 10. b5 {[%clk 0:03:04]}  Na5 {[%clk 0:02:57]} 11. fxg7 {[%clk 0:03:04]}  Rg8 {[%clk 0:02:57]} 12. cxd4 {[%clk 0:03:05]}  Bxd4 {[%clk 0:02:53]} 13. Nxd4 {[%clk 0:03:05]}  Qxd4 {[%clk 0:02:53]} 14. Bb2 {[%clk 0:03:06]}  Qd3 {[%clk 0:02:45]} 15. Bf6 {[%clk 0:03:05]}  Qg6 {[%clk 0:02:27]} 16. Qe5 {[%clk 0:03:05]}  Qxg2 {[%clk 0:02:14]} 17. Rf1 {[%clk 0:03:05]}  Qd5 {[%clk 0:02:04]} 18. Qxd5 {[%clk 0:01:15]}  Bxd5 {[%clk 0:02:03]} 19. Nc3 {[%clk 0:00:52]}  Bf3 {[%clk 0:01:54]} 20. Kd2 {[%clk 0:00:48]}  Kd7 {[%clk 0:01:53]} 21. Rfe1 {[%clk 0:00:42]}  Rae8 {[%clk 0:01:41]} 22. Rxe8 {[%clk 0:00:41]}  Kxe8 {[%clk 0:01:30]} 23. Re1+ {[%clk 0:00:42]}  Kd7 {[%clk 0:01:30]} 24. Re7+ {[%clk 0:00:42]}  Kd6 {[%clk 0:01:30]} 25. Rxf7 {[%clk 0:00:38]}  Bd5 {[%clk 0:01:07]} 26. Nxd5 {[%clk 0:00:37]}  Kxd5 {[%clk 0:01:07]} 27. Rf8 {[%clk 0:00:37]}  Rxg7 {[%clk 0:01:07]} 28. Bxg7 {[%clk 0:00:38]}  Kc5 {[%clk 0:01:02]} 29. Rf5+ {[%clk 0:00:37]}  Kb4 {[%clk 0:01:00]} 30. Bc3+ {[%clk 0:00:36]}  Ka4 {[%clk 0:01:01]} 31. Bxa5 {[%clk 0:00:37]}  Kxa5 {[%clk 0:01:01]} 32. Kc3 {[%clk 0:00:37]}  Ka4 {[%clk 0:00:52]} 33. Kxc4 {[%clk 0:00:36]} 1-0


[Site "https://www.chess.com"]

[Event "Titled Tuesday Blitz December 27 Late 2022"]
[White "TheKnightOfBosnia"]
[Black "Slade, Theodore"]
[BlackFideId "426547"]
[WhiteElo "2434"]
[BlackElo "1995"]
[Result "0-1"]
[Round "03"]
[TimeControl "180+2"]
[Date "2022.12.27"]
[WhiteClock "0:00:17"]
[BlackClock "0:00:59"]

1. e4 {[%clk 0:03:00]}  e5 {[%clk 0:02:57]} 2. Nf3 {[%clk 0:03:01]}  Nc6 {[%clk 0:02:57]} 3. Bb5 {[%clk 0:03:00]}  Nf6 {[%clk 0:02:58]} 4. d3 {[%clk 0:03:00]}  Bc5 {[%clk 0:02:58]} 5. O-O {[%clk 0:02:59]}  Nd4 {[%clk 0:02:58]} 6. Nxd4 {[%clk 0:02:57]}  Bxd4 {[%clk 0:02:59]} 7. c3 {[%clk 0:02:57]}  Bb6 {[%clk 0:02:59]} 8. Be3 {[%clk 0:02:56]}  c6 {[%clk 0:02:59]} 9. Ba4 {[%clk 0:02:56]}  Bxe3 {[%clk 0:02:58]} 10. fxe3 {[%clk 0:02:56]}  O-O {[%clk 0:02:58]} 11. Nd2 {[%clk 0:02:55]}  Qb6 {[%clk 0:02:56]} 12. Nc4 {[%clk 0:02:51]}  Qc7 {[%clk 0:02:55]} 13. Bc2 {[%clk 0:02:44]}  d5 {[%clk 0:02:55]} 14. exd5 {[%clk 0:02:43]}  cxd5 {[%clk 0:02:56]} 15. Nd2 {[%clk 0:02:42]}  Qb6 {[%clk 0:02:55]} 16. d4 {[%clk 0:02:11]}  exd4 {[%clk 0:02:50]} 17. exd4 {[%clk 0:02:08]}  Bg4 {[%clk 0:02:39]} 18. Qc1 {[%clk 0:02:02]}  Rfe8 {[%clk 0:02:37]} 19. Nf3 {[%clk 0:02:00]}  Ne4 {[%clk 0:02:34]} 20. Ne5 {[%clk 0:01:58]}  Rxe5 {[%clk 0:02:29]} 21. Qf4 {[%clk 0:01:54]}  Re7 {[%clk 0:02:05]} 22. Bxe4 {[%clk 0:01:48]}  dxe4 {[%clk 0:02:00]} 23. Qxg4 {[%clk 0:01:48]}  Qxb2 {[%clk 0:02:00]} 24. Kh1 {[%clk 0:01:30]}  Qxc3 {[%clk 0:01:57]} 25. Rac1 {[%clk 0:01:25]}  Qxd4 {[%clk 0:01:53]} 26. Rfd1 {[%clk 0:01:25]}  Qe5 {[%clk 0:01:37]} 27. Rd7 {[%clk 0:01:09]}  h5 {[%clk 0:01:26]} 28. Rxe7 {[%clk 0:01:03]}  Qxe7 {[%clk 0:01:27]} 29. Qxh5 {[%clk 0:01:00]}  Re8 {[%clk 0:01:27]} 30. Qe2 {[%clk 0:00:47]}  e3 {[%clk 0:01:27]} 31. h3 {[%clk 0:00:43]}  Qd6 {[%clk 0:01:24]} 32. Rc2 {[%clk 0:00:40]}  Qd5 {[%clk 0:01:13]} 33. Rc7 {[%clk 0:00:36]}  Qd2 {[%clk 0:01:05]} 34. Qf3 {[%clk 0:00:35]}  Qxa2 {[%clk 0:00:59]} 35. Rxb7 {[%clk 0:00:17]}  e2 {[%clk 0:00:59]} 0-1


[Site "https://www.chess.com"]

[Event "Titled Tuesday Blitz December 27 Late 2022"]
[White "Tomaszewski, Kacper"]
[Black "Kleiman, Jake"]
[WhiteFideId "1127373"]
[BlackFideId "2020041"]
[WhiteElo "2313"]
[BlackElo "2399"]
[Result "1/2-1/2"]
[Round "03"]
[TimeControl "180+2"]
[Date "2022.12.27"]
[WhiteClock "0:00:08"]
[BlackClock "0:00:25"]

1. e4 {[%clk 0:03:00]}  e5 {[%clk 0:03:00]} 2. Nf3 {[%clk 0:03:00]}  Nc6 {[%clk 0:03:00]} 3. Nc3 {[%clk 0:02:59]}  Nf6 {[%clk 0:02:59]} 4. h3 {[%clk 0:03:00]}  Bb4 {[%clk 0:02:55]} 5. Nd5 {[%clk 0:02:58]}  Bd6 {[%clk 0:02:55]} 6. Nxf6+ {[%clk 0:02:36]}  Qxf6 {[%clk 0:02:54]} 7. Bb5 {[%clk 0:02:30]}  Bc5 {[%clk 0:02:47]} 8. d3 {[%clk 0:02:24]}  O-O {[%clk 0:02:36]} 9. Be3 {[%clk 0:02:19]}  Bxe3 {[%clk 0:02:14]} 10. fxe3 {[%clk 0:02:20]}  Ne7 {[%clk 0:02:05]} 11. d4 {[%clk 0:02:08]}  Ng6 {[%clk 0:01:56]} 12. O-O {[%clk 0:02:04]}  Qe7 {[%clk 0:01:51]} 13. Bd3 {[%clk 0:01:57]}  d6 {[%clk 0:01:50]} 14. Qe1 {[%clk 0:01:49]}  Bd7 {[%clk 0:01:48]} 15. Qg3 {[%clk 0:01:48]}  Rae8 {[%clk 0:01:47]} 16. Rae1 {[%clk 0:01:48]}  h6 {[%clk 0:01:42]} 17. c3 {[%clk 0:01:45]}  a6 {[%clk 0:01:38]} 18. Rf2 {[%clk 0:01:41]}  Bc6 {[%clk 0:01:34]} 19. Bb1 {[%clk 0:01:34]}  Qd8 {[%clk 0:01:31]} 20. d5 {[%clk 0:01:27]}  Bd7 {[%clk 0:01:30]} 21. Nd2 {[%clk 0:01:22]}  Qh4 {[%clk 0:01:28]} 22. Qxh4 {[%clk 0:01:16]}  Nxh4 {[%clk 0:01:29]} 23. Ref1 {[%clk 0:01:16]}  a5 {[%clk 0:01:23]} 24. Kh2 {[%clk 0:01:15]}  b6 {[%clk 0:01:18]} 25. Bd3 {[%clk 0:01:15]}  Ng6 {[%clk 0:01:15]} 26. g4 {[%clk 0:01:05]}  Re7 {[%clk 0:01:05]} 27. Kg3 {[%clk 0:01:05]}  b5 {[%clk 0:00:58]} 28. Be2 {[%clk 0:01:05]}  Rb8 {[%clk 0:00:56]} 29. h4 {[%clk 0:00:57]}  Nf8 {[%clk 0:00:48]} 30. g5 {[%clk 0:00:52]}  hxg5 {[%clk 0:00:48]} 31. hxg5 {[%clk 0:00:52]}  g6 {[%clk 0:00:48]} 32. Bg4 {[%clk 0:00:51]}  Kg7 {[%clk 0:00:46]} 33. Rh1 {[%clk 0:00:44]}  Bxg4 {[%clk 0:00:38]} 34. Kxg4 {[%clk 0:00:44]}  Nd7 {[%clk 0:00:36]} 35. Nb3 {[%clk 0:00:43]}  Ra8 {[%clk 0:00:35]} 36. Rfh2 {[%clk 0:00:41]}  Nf8 {[%clk 0:00:35]} 37. Nd2 {[%clk 0:00:30]}  a4 {[%clk 0:00:33]} 38. a3 {[%clk 0:00:29]}  Rc8 {[%clk 0:00:33]} 39. Nf3 {[%clk 0:00:26]}  c6 {[%clk 0:00:30]} 40. Rd1 {[%clk 0:00:23]}  Rd7 {[%clk 0:00:28]} 41. Rhd2 {[%clk 0:00:22]}  Nh7 {[%clk 0:00:24]} 42. dxc6 {[%clk 0:00:22]}  Rdc7 {[%clk 0:00:21]} 43. Rxd6 {[%clk 0:00:21]}  Rxc6 {[%clk 0:00:20]} 44. Rxc6 {[%clk 0:00:21]}  Rxc6 {[%clk 0:00:21]} 45. Rd5 {[%clk 0:00:20]}  Rc4 {[%clk 0:00:20]} 46. Rxe5 {[%clk 0:00:19]}  Nf8 {[%clk 0:00:21]} 47. Nd2 {[%clk 0:00:17]}  Rc8 {[%clk 0:00:19]} 48. Rxb5 {[%clk 0:00:17]}  Ne6 {[%clk 0:00:19]} 49. Ra5 {[%clk 0:00:15]}  Nc5 {[%clk 0:00:19]} 50. e5 {[%clk 0:00:11]}  Kf8 {[%clk 0:00:19]} 51. Nf3 {[%clk 0:00:10]}  Ke7 {[%clk 0:00:19]} 52. Nd4 {[%clk 0:00:10]}  Rc7 {[%clk 0:00:19]} 53. Ra7 {[%clk 0:00:08]}  Rxa7 {[%clk 0:00:17]} 54. Nc6+ {[%clk 0:00:08]}  Ke6 {[%clk 0:00:18]} 55. Nxa7 {[%clk 0:00:09]}  Kxe5 {[%clk 0:00:19]} 56. Nc6+ {[%clk 0:00:08]}  Ke4 {[%clk 0:00:19]} 57. Nd8 {[%clk 0:00:09]}  Kxe3 {[%clk 0:00:18]} 58. Nxf7 {[%clk 0:00:09]}  Kd3 {[%clk 0:00:17]} 59. Ne5+ {[%clk 0:00:09]}  Kc2 {[%clk 0:00:18]} 60. Nxg6 {[%clk 0:00:10]}  Kxb2 {[%clk 0:00:18]} 61. Ne7 {[%clk 0:00:10]}  Kxa3 {[%clk 0:00:18]} 62. g6 {[%clk 0:00:10]}  Ne6 {[%clk 0:00:16]} 63. Kf5 {[%clk 0:00:10]}  Ng7+ {[%clk 0:00:17]} 64. Kf6 {[%clk 0:00:10]}  Nh5+ {[%clk 0:00:17]} 65. Kg5 {[%clk 0:00:11]}  Ng7 {[%clk 0:00:18]} 66. Nf5 {[%clk 0:00:11]}  Ne8 {[%clk 0:00:18]} 67. Nd6 {[%clk 0:00:09]}  Ng7 {[%clk 0:00:16]} 68. Kh6 {[%clk 0:00:08]}  Ne6 {[%clk 0:00:16]} 69. Nb5+ {[%clk 0:00:08]}  Kb3 {[%clk 0:00:16]} 70. g7 {[%clk 0:00:08]}  Nxg7 {[%clk 0:00:16]} 71. Kxg7 {[%clk 0:00:09]}  Kc4 {[%clk 0:00:16]} 72. Na3+ {[%clk 0:00:07]}  Kxc3 {[%clk 0:00:17]} 73. Kf6 {[%clk 0:00:08]}  Kb3 {[%clk 0:00:17]} 74. Nb5 {[%clk 0:00:08]}  Kb4 {[%clk 0:00:18]} 75. Nd4 {[%clk 0:00:09]}  Kc4 {[%clk 0:00:18]} 76. Nc2 {[%clk 0:00:09]}  Kb3 {[%clk 0:00:19]} 77. Nd4+ {[%clk 0:00:09]}  Kb2 {[%clk 0:00:19]} 78. Nb5 {[%clk 0:00:09]}  Kb3 {[%clk 0:00:20]} 79. Ke5 {[%clk 0:00:09]}  Kc4 {[%clk 0:00:21]} 80. Na3+ {[%clk 0:00:09]}  Kc3 {[%clk 0:00:21]} 81. Nb5+ {[%clk 0:00:09]}  Kb3 {[%clk 0:00:22]} 82. Nd4+ {[%clk 0:00:09]}  Kb4 {[%clk 0:00:23]} 83. Nc2+ {[%clk 0:00:08]}  Kc3 {[%clk 0:00:23]} 84. Na3 {[%clk 0:00:08]}  Kb4 {[%clk 0:00:23]} 85. Nc2+ {[%clk 0:00:08]}  Kb3 {[%clk 0:00:24]} 86. Nd4+ {[%clk 0:00:08]}  Kc4 {[%clk 0:00:24]} 87. Nc2 {[%clk 0:00:08]}  Kb5 {[%clk 0:00:24]} 88. Kd4 {[%clk 0:00:08]}  Ka5 {[%clk 0:00:24]} 89. Kc3 {[%clk 0:00:08]}  a3 {[%clk 0:00:25]} 90. Nxa3 {[%clk 0:00:08]} 1/2-1/2


[Site "https://www.chess.com"]

[Event "Titled Tuesday Blitz December 27 Late 2022"]
[White "Torres Dominguez, David"]
[Black "Karas, Marek"]
[WhiteFideId "2220857"]
[BlackFideId "14928558"]
[WhiteElo "1994"]
[BlackElo "2227"]
[Result "1-0"]
[Round "03"]
[TimeControl "180+2"]
[Date "2022.12.27"]
[WhiteClock "0:00:21"]
[BlackClock "0:00:17"]

1. e4 {[%clk 0:02:52]}  h5 {[%clk 0:02:59]} 2. d4 {[%clk 0:02:51]}  g6 {[%clk 0:02:57]} 3. Nc3 {[%clk 0:02:45]}  Bg7 {[%clk 0:02:50]} 4. Be3 {[%clk 0:02:45]}  c6 {[%clk 0:02:51]} 5. d5 {[%clk 0:02:42]}  cxd5 {[%clk 0:02:47]} 6. exd5 {[%clk 0:02:38]}  Nf6 {[%clk 0:02:44]} 7. Be2 {[%clk 0:02:30]}  d6 {[%clk 0:02:44]} 8. Nf3 {[%clk 0:02:26]}  Bg4 {[%clk 0:02:40]} 9. Qd2 {[%clk 0:02:19]}  Nbd7 {[%clk 0:02:38]} 10. O-O {[%clk 0:02:17]}  Bxf3 {[%clk 0:02:38]} 11. Bxf3 {[%clk 0:02:11]}  O-O {[%clk 0:02:36]} 12. Bd4 {[%clk 0:02:11]}  Ne5 {[%clk 0:02:29]} 13. Be2 {[%clk 0:02:06]}  Nfd7 {[%clk 0:02:22]} 14. Rae1 {[%clk 0:02:00]}  Nc5 {[%clk 0:02:12]} 15. f4 {[%clk 0:01:55]}  Ned7 {[%clk 0:02:11]} 16. Bxg7 {[%clk 0:01:54]}  Kxg7 {[%clk 0:02:11]} 17. b4 {[%clk 0:01:47]}  Qb6 {[%clk 0:01:56]} 18. bxc5 {[%clk 0:01:44]}  Qxc5+ {[%clk 0:01:57]} 19. Kh1 {[%clk 0:01:38]}  Rac8 {[%clk 0:01:56]} 20. Rf3 {[%clk 0:01:31]}  Nf6 {[%clk 0:01:48]} 21. f5 {[%clk 0:01:23]}  Qb4 {[%clk 0:01:40]} 22. Bf1 {[%clk 0:01:09]}  Rc7 {[%clk 0:01:37]} 23. fxg6 {[%clk 0:01:02]}  fxg6 {[%clk 0:01:38]} 24. Rb1 {[%clk 0:00:59]}  Qh4 {[%clk 0:01:29]} 25. Nb5 {[%clk 0:00:52]}  Ng4 {[%clk 0:01:20]} 26. h3 {[%clk 0:00:50]}  Rcc8 {[%clk 0:01:12]} 27. g3 {[%clk 0:00:45]}  Nf2+ {[%clk 0:00:41]} 28. Qxf2 {[%clk 0:00:45]}  Qg5 {[%clk 0:00:41]} 29. Rbb3 {[%clk 0:00:37]}  Qxd5 {[%clk 0:00:38]} 30. Bg2 {[%clk 0:00:23]}  Qd1+ {[%clk 0:00:35]} 31. Kh2 {[%clk 0:00:23]}  Rxc2 {[%clk 0:00:24]} 32. Qd4+ {[%clk 0:00:22]}  Rf6 {[%clk 0:00:17]} 33. Qxd1 {[%clk 0:00:21]} 1-0


[Site "https://www.chess.com"]